fUST/lending_fUST_20241227
["ID","MTS","AMOUNT","RATE_DAILY","PERIOD"]
[346802715,1735297845466,-4004.51363935,0.00013,2]
[346802716,1735297845477,-151.0,0.00013,2]
[346802717,1735297845487,-151.0,0.00013,2]
[346802718,1735297845498,-177.708206,0.00013,2]
[346802719,1735297845508,-177.708206,0.00013,2]
[346802720,1735297845518,-151.0,0.00013,2]
[346802721,1735297845527,-245.088972,0.00013,2]
[346802722,1735297845537,-197.99672321,0.00013014,2]
[346802723,1735297845547,-197.99672321,0.00013068,2]
[346802724,1735297845556,-675.59,0.00013101,2]
[346802725,1735297845566,-841.97,0.00013102,2]
[346802726,1735297845575,-2775.97,0.00013102,2]
[346802727,1735297845585,-939.54,0.00013102,2]
[346802728,1735297845596,-515.98,0.00013102,2]
[346802729,1735297845605,-1096.21,0.00013102,2]
[346802730,1735297845615,-353.08138704,0.00013102,2]
[346802731,1735297845625,-500.0,0.00013103,2]
[346802732,1735297845634,-515.07,0.00013103,2]
[346802733,1735297845644,-276.53415293,0.00013103,2]
[346802734,1735297845654,-500.0,0.00013103,2]
[346802735,1735297845663,-500.0,0.00013103,2]
[346802736,1735297845673,-500.0,0.00013103,2]
[346802737,1735297845683,-462.94599036,0.00013103,2]
[346802738,1735297845692,-778.49,0.00013105,2]
[346802739,1735297845702,-8618.13,0.00013105,2]
[346802740,1735297845711,-2522.69483797,0.00013107,2]
[346802741,1735297845925,-252.87346695,0.00013107,2]
[346802751,1735297846237,-664.18169508,0.00013107,2]
[346802753,1735297846247,-500.0,0.0001311,2]
[346802755,1735297846255,-2272.09,0.0001311,2]
[346802757,1735297846265,-2201.14,0.00013112,2]
[346802759,1735297846275,-151.03,0.00013114,2]
[346802761,1735297846285,-197.99672321,0.00013123,2]
[346802763,1735297846294,-675.59,0.00013375,2]
[346802765,1735297846303,-841.97,0.00013376,2]
[346802767,1735297846312,-2775.97,0.00013376,2]
[346802769,1735297846323,-939.54,0.00013376,2]
[346802770,1735297846332,-515.98,0.00013376,2]
[346802773,1735297846342,-1096.21,0.00013376,2]
[346802775,1735297846351,-632.05090609,0.00013377,2]
[346802776,1735297846360,-500.0,0.00013377,2]
[346802779,1735297846370,-500.0,0.00013377,2]
[346802781,1735297846379,-500.0,0.00013377,2]
[346802783,1735297846389,-778.49,0.00013379,2]
[346802784,1735297846398,-8618.13,0.00013379,2]
[346802787,1735297846407,-3439.75,0.00013381,2]
[346802789,1735297846417,-197.7,0.00013384,2]
[346802790,1735297846427,-2272.09,0.00013384,2]
[346802792,1735297846436,-2201.14,0.00013386,2]
[346802795,1735297846446,-250.23333294,0.0001345,2]
[346802796,1735297846455,-500.0,0.000135,2]
[346802799,1735297846464,-500.0,0.000135,2]
[346802801,1735297846474,-394.0,0.00013506,2]
[346802803,1735297846484,-394.0,0.00013506,2]
[346802805,1735297846493,-418.091946,0.000136,4]
[346802807,1735297846502,-675.59,0.00013649,2]
[346802809,1735297846512,-841.97,0.0001365,2]
[346802811,1735297846521,-1415.97125358,0.0001365,2]
[346802813,1735297846533,-1359.99874642,0.0001365,2]
[346802815,1735297846543,-939.54,0.0001365,2]
[346802817,1735297846552,-480.61074381,0.0001365,2]
[346802833,1735297846692,-35.36925619,0.0001365,2]
[346802835,1735297846702,-1096.21,0.0001365,2]
[346802837,1735297846710,-500.0,0.00013651,2]
[346802839,1735297846720,-500.0,0.00013651,2]
[346802841,1735297846729,-472.60681763,0.00013651,2]
[346802843,1735297846738,-151.0,0.00013653,2]
[346802845,1735297846748,-778.49,0.00013653,2]
[346802847,1735297846758,-2261.89192618,0.00013653,2]
[346802930,1735298480704,8091.2558252,8.543e-05,2]
[346802931,1735298712124,-300.0,9.262e-05,2]
[346802932,1735298712148,-304.12254157,9.263e-05,2]
[346802933,1735298712171,-473.64639322,9.263e-05,2]
[346802934,1735298712197,-500.0,9.263e-05,2]
[346802935,1735298712219,-159.76995019,9.263e-05,2]
[346802936,1735298712243,-500.0,9.263e-05,2]
[346802937,1735298712268,-500.0,9.263e-05,2]
[346802938,1735298712295,-500.0,9.263e-05,2]
[346802939,1735298712319,-500.0,9.263e-05,2]
[346802940,1735298712344,-500.0,9.263e-05,2]
[346802941,1735298712369,-500.0,9.263e-05,2]
[346802942,1735298712392,-601.28817598,9.263e-05,2]
[346802943,1735298712418,-247.31948903,9.263e-05,2]
[346802944,1735298712441,-500.0,9.263e-05,2]
[346802945,1735298712465,-56087.85345001,9.264e-05,2]
[346802947,1735298836148,-825.537893,9.163e-05,2]
[346802948,1735298836302,-227.48507537,9.263e-05,2]
[346802949,1735298955881,-500.0,9.263e-05,2]
[346802950,1735298955909,-823.89869004,9.264e-05,2]
[346802951,1735298955941,-1238.08174611,9.264e-05,2]
[346802952,1735298981041,-1375.13829877,9.264e-05,2]
[346802953,1735298981083,-1179.69918998,9.264e-05,2]
[346802954,1735299005847,-1426.23504854,9.163e-05,2]
[346802955,1735299005901,-979.71588006,9.163e-05,2]
[346803001,1735299032570,-6582.57017056,9.163e-05,2]
[346803003,1735299032583,-6682.48780105,9.163e-05,2]
[346803005,1735299032592,-500.0,9.263e-05,2]
[346803007,1735299032601,-300.0,9.263e-05,2]
[346803009,1735299032611,-160.5769537,9.263e-05,2]
[346803044,1735299038595,-339.4230463,9.263e-05,2]
[346803045,1735299038605,-500.0,9.263e-05,2]
[346803046,1735299038615,-500.0,9.263e-05,2]
[346803047,1735299038627,-523.97956359,9.263e-05,2]
[346803048,1735299038637,-500.0,9.263e-05,2]
[346803049,1735299038646,-698349.44906326,9.264e-05,2]
[346803050,1735299038658,-20337.11128038,9.264e-05,2]
[346803051,1735299038670,-4410.96717536,9.264e-05,2]
[346803052,1735299038682,-13414.85110609,9.264e-05,2]
[346803053,1735299038693,-106.82702495,9.265e-05,2]
[346803054,1735299038706,-393.17297505,9.265e-05,2]
[346803055,1735299038716,-234.55716903,9.265e-05,2]
[346803056,1735299040519,-265.44283097,9.265e-05,2]
[346803057,1735299040528,-501.73266881,9.265e-05,2]
[346803058,1735299040678,-209.21473069,9.265e-05,2]
[346803059,1735299040722,-290.78526931,9.265e-05,2]
[346803060,1735299040731,-500.0,9.265e-05,2]
[346803061,1735299040740,-500.0,9.265e-05,2]
[346803063,1735299040750,-500.0,9.265e-05,2]
[346803065,1735299040759,-500.0,9.265e-05,2]
[346803067,1735299040768,-500.0,9.265e-05,2]
[346803069,1735299040778,-500.0,9.265e-05,2]
[346803071,1735299040787,-500.0,9.265e-05,2]
[346803072,1735299040796,-500.0,9.265e-05,2]
[346803073,1735299040806,-152.97720006,9.265e-05,2]
[346803075,1735299040818,-500.0,9.265e-05,2]
[346803077,1735299040827,-500.0,9.265e-05,2]
[346803079,1735299040837,-500.0,9.265e-05,2]
[346803081,1735299040846,-500.0,9.265e-05,2]
[346803083,1735299040856,-500.0,9.265e-05,2]
[346803085,1735299040865,-500.0,9.265e-05,2]
[346803087,1735299040875,-577.76947593,9.265e-05,2]
[346803089,1735299040884,-700.66773314,9.265e-05,2]
[346803091,1735299040894,-500.0,9.266e-05,2]
[346803093,1735299040903,-500.0,9.266e-05,2]
[346803095,1735299040913,-500.0,9.266e-05,2]
[346803097,1735299040922,-500.0,9.266e-05,2]
[346803099,1735299040931,-500.0,9.266e-05,2]
[346803101,1735299040940,-500.0,9.266e-05,2]
[346803103,1735299040949,-1146.59,9.266e-05,2]
[346803105,1735299040958,-500.0,9.266e-05,2]
[346803107,1735299040967,-500.0,9.267e-05,2]
[346803109,1735299040977,-500.0,9.267e-05,2]
[346803111,1735299040986,-500.0,9.267e-05,2]
[346803113,1735299040995,-500.0,9.267e-05,2]
[346803115,1735299041004,-500.0,9.267e-05,2]
[346803117,1735299041014,-500.0,9.267e-05,2]
[346803119,1735299041024,-500.0,9.267e-05,2]
[346803121,1735299041033,-157.06036812,9.268e-05,2]
[346803123,1735299041043,-1331.0,9.269e-05,2]
[346803125,1735299041053,-500.0,9.269e-05,2]
[346803127,1735299041064,-500.0,9.269e-05,2]
[346803129,1735299041073,-1116.3,9.272e-05,2]
[346803131,1735299041083,-500.0,9.537e-05,2]
[346803133,1735299041092,-500.0,9.537e-05,2]
[346803135,1735299041102,-500.0,9.537e-05,2]
[346803137,1735299041111,-500.0,9.537e-05,2]
[346803139,1735299041120,-623.35351859,9.537e-05,2]
[346803141,1735299041130,-500.0,9.539e-05,2]
[346803143,1735299041139,-500.0,9.539e-05,2]
[346803145,1735299041149,-500.0,9.539e-05,2]
[346803147,1735299041158,-500.0,9.539e-05,2]
[346803149,1735299041169,-500.0,9.539e-05,2]
[346803151,1735299041179,-500.0,9.539e-05,2]
[346803153,1735299041188,-500.0,9.539e-05,2]
[346803155,1735299041197,-500.0,9.539e-05,2]
[346803157,1735299041208,-500.0,9.539e-05,2]
[346803159,1735299041219,-278.02520881,9.539e-05,2]
[346803162,1735299041228,-500.0,9.539e-05,2]
[346803163,1735299041238,-500.0,9.539e-05,2]
[346803165,1735299041248,-500.0,9.54e-05,2]
[346803167,1735299041258,-500.0,9.54e-05,2]
[346803169,1735299041267,-500.0,9.54e-05,2]
[346803171,1735299041276,-500.0,9.54e-05,2]
[346803174,1735299041288,-551.22537536,9.54e-05,2]
[346803176,1735299041297,-581.42,9.54e-05,2]
[346803178,1735299041306,-1146.59,9.54e-05,2]
[346803179,1735299041316,-500.0,9.541e-05,2]
[346803181,1735299041326,-500.0,9.541e-05,2]
[346803183,1735299041335,-500.0,9.541e-05,2]
[346803185,1735299041344,-500.0,9.541e-05,2]
[346803187,1735299041353,-1331.0,9.543e-05,2]
[346803189,1735299041363,-500.0,9.543e-05,2]
[346803192,1735299041375,-1116.3,9.546e-05,2]
[346803194,1735299041384,-500.0,9.721e-05,2]
[346803196,1735299041393,-500.0,9.721e-05,2]
[346803198,1735299041402,-285.51559659,9.721e-05,2]
[346803200,1735299041412,-1437.06,9.721e-05,2]
[346803202,1735299041422,-510.47,9.721e-05,2]
[346803204,1735299041432,-500.0,9.721e-05,2]
[346803206,1735299041442,-500.0,9.721e-05,2]
[346803208,1735299041451,-500.0,9.721e-05,2]
[346803210,1735299041460,-500.0,9.721e-05,2]
[346803212,1735299041470,-500.0,9.721e-05,2]
[346803214,1735299041479,-500.0,9.721e-05,2]
[346803216,1735299041488,-500.0,9.721e-05,2]
[346803218,1735299041497,-500.0,9.721e-05,2]
[346803220,1735299041507,-500.0,9.722e-05,2]
[346803222,1735299041516,-500.0,9.722e-05,2]
[346803224,1735299041526,-500.0,9.722e-05,2]
[346803226,1735299041535,-500.0,9.722e-05,2]
[346803228,1735299041544,-500.0,9.722e-05,2]
[346803230,1735299041553,-500.0,9.722e-05,2]
[346803232,1735299041563,-500.0,9.722e-05,2]
[346803234,1735299041573,-500.0,9.722e-05,2]
[346803236,1735299041582,-500.0,9.722e-05,2]
[346803238,1735299041591,-500.0,9.722e-05,2]
[346803240,1735299041600,-500.0,9.722e-05,2]
[346803242,1735299041610,-500.0,9.722e-05,2]
[346803244,1735299041619,-500.0,9.722e-05,2]
[346803246,1735299041628,-500.0,9.722e-05,2]
[346803248,1735299041638,-500.0,9.722e-05,2]
[346803250,1735299041647,-500.0,9.722e-05,2]
[346803252,1735299041656,-500.0,9.722e-05,2]
[346803254,1735299041666,-500.0,9.722e-05,2]
[346803256,1735299041675,-500.0,9.722e-05,2]
[346803258,1735299041684,-500.0,9.722e-05,2]
[346803260,1735299041694,-500.0,9.722e-05,2]
[346803262,1735299041703,-500.0,9.722e-05,2]
[346803264,1735299041712,-500.0,9.722e-05,2]
[346803266,1735299041721,-500.0,9.722e-05,2]
[346803268,1735299041730,-500.0,9.722e-05,2]
[346803270,1735299041740,-500.0,9.722e-05,2]
[346803272,1735299041749,-535.3919373,9.722e-05,2]
[346803274,1735299041759,-500.0,9.722e-05,2]
[346803276,1735299041768,-500.0,9.722e-05,2]
[346803278,1735299041777,-4990.48,9.722e-05,2]
[346803280,1735299041787,-500.0,9.722e-05,2]
[346803282,1735299041796,-500.0,9.722e-05,2]
[346803284,1735299041805,-626.02175958,9.722e-05,2]
[346803286,1735299041815,-500.0,9.722e-05,2]
[346803288,1735299041824,-500.0,9.722e-05,2]
[346803290,1735299041834,-500.0,9.722e-05,2]
[346803292,1735299041843,-500.0,9.723e-05,2]
[346803294,1735299041852,-500.0,9.723e-05,2]
[346803296,1735299041862,-500.0,9.723e-05,2]
[346803298,1735299041871,-498.03311485,9.723e-05,2]
[346803300,1735299041880,-500.0,9.723e-05,2]
[346803302,1735299041890,-500.0,9.723e-05,2]
[346803304,1735299041899,-500.0,9.723e-05,2]
[346803306,1735299041909,-501.83513903,9.723e-05,2]
[346803308,1735299041918,-579.10781823,9.723e-05,2]
[346803310,1735299041926,-500.0,9.723e-05,2]
[346803312,1735299041935,-500.0,9.723e-05,2]
[346803314,1735299041945,-500.0,9.723e-05,2]
[346803316,1735299041954,-500.0,9.723e-05,2]
[346803318,1735299041963,-500.0,9.723e-05,2]
[346803320,1735299041972,-500.0,9.723e-05,2]
[346803322,1735299041982,-457.40202271,9.723e-05,2]
[346803324,1735299041991,-500.0,9.723e-05,2]
[346803326,1735299042001,-247.10149344,9.723e-05,2]
[346803328,1735299042010,-354.34053768,9.723e-05,2]
[346803330,1735299042019,-502.15083437,9.723e-05,2]
[346803332,1735299042028,-415.07863044,9.723e-05,2]
[346803334,1735299042038,-500.0,9.723e-05,2]
[346803336,1735299042046,-500.0,9.723e-05,2]
[346803338,1735299042056,-500.0,9.723e-05,2]
[346803340,1735299042066,-500.0,9.723e-05,2]
[346803342,1735299042075,-500.0,9.811e-05,2]
[346803344,1735299042084,-500.0,9.811e-05,2]
[346803346,1735299042094,-500.0,9.811e-05,2]
[346803348,1735299042103,-500.0,9.811e-05,2]
[346803350,1735299042112,-166.16,9.813e-05,2]
[346803352,1735299042121,-159.28,9.813e-05,2]
[346803354,1735299042131,-337.78,9.813e-05,2]
[346803356,1735299042140,-500.0,9.814e-05,2]
[346803358,1735299042149,-500.0,9.814e-05,2]
[346803360,1735299042159,-500.0,9.814e-05,2]
[346803362,1735299042170,-1146.59,9.814e-05,2]
[346803364,1735299042180,-609.72,9.815e-05,2]
[346803366,1735299042189,-1331.0,9.817e-05,2]
[346803368,1735299042198,-500.0,9.817e-05,2]
[346803370,1735299042208,-1116.3,9.82e-05,2]
[346803372,1735299042218,-500.0,9.995e-05,2]
[346803374,1735299042228,-500.0,9.995e-05,2]
[346803377,1735299042237,-1437.06,9.995e-05,2]
[346803378,1735299042248,-510.47,9.995e-05,2]
[346803381,1735299042258,-500.0,9.995e-05,2]
[346803382,1735299042267,-500.0,9.995e-05,2]
[346803384,1735299042276,-500.0,9.995e-05,2]
[346803387,1735299042286,-500.0,9.995e-05,2]
[346803389,1735299042295,-500.0,9.995e-05,2]
[346803391,1735299042304,-500.0,9.995e-05,2]
[346803393,1735299042315,-500.0,9.995e-05,2]
[346803394,1735299042324,-500.0,9.996e-05,2]
[346803396,1735299042334,-422.80370337,9.996e-05,2]
[346803399,1735299042344,-500.0,9.996e-05,2]
[346803401,1735299042354,-500.0,9.996e-05,2]
[346803402,1735299042363,-500.0,9.996e-05,2]
[346803405,1735299042372,-500.0,9.996e-05,2]
[346803406,1735299042382,-131.9757044,9.996e-05,2]
[346803536,1735299043571,-368.0242956,9.996e-05,2]
[346803538,1735299043582,-500.0,9.996e-05,2]
[346803540,1735299043591,-500.0,9.996e-05,2]
[346803542,1735299043600,-500.0,9.996e-05,2]
[346803544,1735299043610,-500.0,9.996e-05,2]
[346803546,1735299043619,-500.0,9.996e-05,2]
[346803548,1735299043628,-500.0,9.996e-05,2]
[346803550,1735299043638,-500.0,9.996e-05,2]
[346803552,1735299043647,-500.0,9.996e-05,2]
[346803554,1735299043657,-500.0,9.996e-05,2]
[346803556,1735299043667,-500.0,9.996e-05,2]
[346803558,1735299043676,-500.0,9.996e-05,2]
[346803560,1735299043685,-500.0,9.996e-05,2]
[346803562,1735299043695,-500.0,9.996e-05,2]
[346803564,1735299043704,-500.0,9.996e-05,2]
[346803566,1735299043713,-500.0,9.996e-05,2]
[346803568,1735299043723,-500.0,9.996e-05,2]
[346803570,1735299043734,-500.0,9.996e-05,2]
[346803572,1735299043743,-4301.91218806,9.996e-05,2]
[346804480,1735299396695,19622.5118216,8.608e-05,2]
[346804482,1735299574574,15389.5346884,0.00023,120]
[346804483,1735299576581,-300.0,9.169e-05,2]
[346804484,1735299576602,-300.0,9.262e-05,2]
[346804485,1735299576623,-500.0,9.263e-05,2]
[346804486,1735299576645,-500.0,9.263e-05,2]
[346804487,1735299576667,-154.50312373,9.263e-05,2]
[346804488,1735299576689,-502.69550652,9.263e-05,2]
[346804489,1735299576709,-504.88930304,9.263e-05,2]
[346804490,1735299576729,-500.0,9.263e-05,2]
[346804491,1735299576752,-500.0,9.263e-05,2]
[346804492,1735299576773,-602.22,9.263e-05,2]
[346804493,1735299576794,-500.0,9.263e-05,2]
[346804494,1735299576815,-500.0,9.263e-05,2]
[346804495,1735299576837,-500.0,9.263e-05,2]
[346804496,1735299576858,-500.0,9.263e-05,2]
[346804497,1735299576879,-500.0,9.263e-05,2]
[346804498,1735299576900,-500.0,9.263e-05,2]
[346804499,1735299576921,-500.0,9.263e-05,2]
[346804500,1735299576945,-1317.31,9.263e-05,2]
[346804501,1735299576966,-500.0,9.263e-05,2]
[346804502,1735299576987,-500.0,9.263e-05,2]
[346804503,1735299577008,-500.0,9.263e-05,2]
[346804504,1735299577030,-500.0,9.263e-05,2]
[346804505,1735299577053,-570.39,9.263e-05,2]
[346804506,1735299577073,-527.66,9.263e-05,2]
[346804507,1735299577095,-500.0,9.263e-05,2]
[346804508,1735299577116,-500.0,9.263e-05,2]
[346804509,1735299577137,-500.0,9.263e-05,2]
[346804510,1735299577158,-500.0,9.263e-05,2]
[346804511,1735299577180,-500.0,9.263e-05,2]
[346804512,1735299577201,-152.99972044,9.263e-05,2]
[346804513,1735299577223,-4603.3,9.263e-05,2]
[346804514,1735299577246,-500.0,9.263e-05,2]
[346804515,1735299577268,-500.0,9.263e-05,2]
[346804516,1735299577292,-500.0,9.263e-05,2]
[346804517,1735299577318,-500.0,9.263e-05,2]
[346804518,1735299577341,-500.0,9.263e-05,2]
[346804519,1735299577364,-500.0,9.263e-05,2]
[346804520,1735299577384,-500.0,9.263e-05,2]
[346804521,1735299577408,-500.0,9.263e-05,2]
[346804522,1735299577429,-500.0,9.263e-05,2]
[346804523,1735299577452,-500.0,9.263e-05,2]
[346804524,1735299577475,-500.0,9.263e-05,2]
[346804525,1735299577497,-500.0,9.263e-05,2]
[346804526,1735299577519,-417.01,9.266e-05,2]
[346804527,1735299577541,-1164.62,9.267e-05,2]
[346804528,1735299577565,-976.76,9.269e-05,2]
[346804530,1735299734880,999.999999,2.3e-05,5]
[346804531,1735299801826,1761.0,0.00023,120]
[346804532,1735300013743,-2000.0,9.077e-05,2]
[346804533,1735300013764,-500.0,9.262e-05,2]
[346804534,1735300013787,-500.0,9.262e-05,2]
[346804535,1735300013810,-500.0,9.262e-05,2]
[346804536,1735300013833,-1378.08,9.262e-05,2]
[346804537,1735300013859,-500.0,9.262e-05,2]
[346804538,1735300013883,-500.0,9.262e-05,2]
[346804539,1735300013905,-500.0,9.262e-05,2]
[346804540,1735300013926,-500.0,9.262e-05,2]
[346804541,1735300013948,-210.56,9.262e-05,2]
[346804542,1735300013970,-500.0,9.262e-05,2]
[346804543,1735300013992,-500.0,9.262e-05,2]
[346804544,1735300014014,-500.0,9.263e-05,2]
[346804545,1735300014034,-500.0,9.263e-05,2]
[346804546,1735300014055,-500.0,9.263e-05,2]
[346804547,1735300014077,-212.58503599,9.263e-05,2]
[346804548,1735300014100,-526.38,9.263e-05,2]
[346804549,1735300014247,-500.0,9.263e-05,2]
[346804550,1735300014270,-500.0,9.263e-05,2]
[346804551,1735300014291,-500.0,9.263e-05,2]
[346804552,1735300014312,-500.0,9.263e-05,2]
[346804553,1735300014333,-505.68,9.263e-05,2]
[346804554,1735300014357,-500.0,9.263e-05,2]
[346804555,1735300014378,-500.0,9.263e-05,2]
[346804556,1735300014399,-500.0,9.263e-05,2]
[346804557,1735300014422,-616.73,9.263e-05,2]
[346804558,1735300014443,-500.0,9.263e-05,2]
[346804559,1735300014464,-500.0,9.263e-05,2]
[346804560,1735300014502,-582.75,9.263e-05,2]
[346804561,1735300014527,-583.8,9.263e-05,2]
[346804562,1735300014552,-500.0,9.263e-05,2]
[346804563,1735300014574,-500.0,9.263e-05,2]
[346804564,1735300014599,-500.0,9.265e-05,2]
[346804565,1735300014622,-192.66981247,9.265e-05,2]
[346804566,1735300014645,-500.0,9.265e-05,2]
[346804567,1735300014670,-500.0,9.265e-05,2]
[346804568,1735300014693,-500.0,9.265e-05,2]
[346804569,1735300014717,-500.0,9.265e-05,2]
[346804570,1735300014740,-1271.86,9.266e-05,2]
[346804571,1735300014765,-1210.77,9.266e-05,2]
[346804572,1735300014788,-500.0,9.266e-05,2]
[346804573,1735300014811,-500.0,9.266e-05,2]
[346804574,1735300039140,-500.0,9.265e-05,2]
[346804575,1735300039163,-158.92534619,9.265e-05,2]
[346804576,1735300039184,-835.11342511,9.441e-05,2]
[346804577,1735300039208,-300.0,9.535e-05,2]
[346804578,1735300039230,-500.0,9.536e-05,2]
[346804579,1735300039252,-500.0,9.536e-05,2]
[346804580,1735300039275,-500.0,9.536e-05,2]
[346804581,1735300039298,-500.0,9.536e-05,2]
[346804582,1735300039331,-1378.08,9.536e-05,2]
[346804583,1735300039364,-295.48,9.536e-05,2]
[346804584,1735300039393,-500.0,9.536e-05,2]
[346804585,1735300039421,-500.0,9.536e-05,2]
[346804586,1735300039448,-500.0,9.536e-05,2]
[346804587,1735300039477,-4770.59,9.536e-05,2]
[346804588,1735300039506,-160.11,9.536e-05,2]
[346804589,1735300039535,-500.0,9.536e-05,2]
[346804590,1735300039563,-382.28676186,9.536e-05,2]
[346804591,1735300039590,-500.0,9.536e-05,2]
[346804592,1735300039619,-500.0,9.537e-05,2]
[346804593,1735300039645,-500.0,9.537e-05,2]
[346804594,1735300039672,-288.97455585,9.537e-05,2]
[346804595,1735300183967,-300.0,9.261e-05,2]
[346804596,1735300183996,-394.26,9.262e-05,2]
[346804597,1735300184024,-500.0,9.262e-05,2]
[346804598,1735300184053,-144.07927126,9.262e-05,2]
[346804599,1735300184085,-355.92072874,9.262e-05,2]
[346804600,1735300184112,-417.69,9.262e-05,2]
[346804601,1735300184138,-36.74441478,9.262e-05,2]
[346804602,1735300184170,-537.77558522,9.262e-05,2]
[346804603,1735300184196,-500.0,9.263e-05,2]
[346804604,1735300184223,-300.56368604,9.263e-05,2]
[346804605,1735300208940,-199.43631396,9.263e-05,2]
[346804606,1735300208969,-500.0,9.263e-05,2]
[346804607,1735300208997,-500.0,9.263e-05,2]
[346804608,1735300209027,-208.64363102,9.263e-05,2]
[346804609,1735300209062,-368.21636898,9.263e-05,2]
[346804610,1735300209090,-500.0,9.263e-05,2]
[346804611,1735300209118,-365.4470357,9.263e-05,2]
[346804652,1735300238520,-4930.9,9.262e-05,2]
[346804654,1735300238530,-500.0,9.262e-05,2]
[346804656,1735300238540,-134.5529643,9.263e-05,2]
[346804658,1735300238552,-500.0,9.263e-05,2]
[346804660,1735300238562,-1263.24,9.265e-05,2]
[346804661,1735300238572,-500.0,9.265e-05,2]
[346804662,1735300238582,-500.0,9.265e-05,2]
[346804663,1735300238593,-500.0,9.265e-05,2]
[346804664,1735300238603,-500.0,9.265e-05,2]
[346804665,1735300238613,-500.0,9.265e-05,2]
[346804666,1735300238623,-500.0,9.265e-05,2]
[346804667,1735300238632,-200.65,9.265e-05,2]
[346804668,1735300238642,-500.0,9.265e-05,2]
[346804669,1735300238651,-1310.58,9.266e-05,2]
[346804670,1735300238661,-94.79846565,9.536e-05,2]
[346804671,1735300238673,-405.20153435,9.536e-05,2]
[346804672,1735300238682,-500.0,9.536e-05,2]
[346804673,1735300238692,-4930.9,9.536e-05,2]
[346804674,1735300238701,-211.02544415,9.537e-05,2]
[346804675,1735300238711,-228.15,9.537e-05,2]
[346804676,1735300238720,-500.0,9.537e-05,2]
[346804677,1735300238730,-401.5802367,9.537e-05,2]
[346804678,1735300238740,-616.73,9.537e-05,2]
[346804679,1735300238750,-500.0,9.537e-05,2]
[346804680,1735300238759,-500.0,9.537e-05,2]
[346804681,1735300238769,-500.0,9.537e-05,2]
[346804682,1735300238779,-500.0,9.537e-05,2]
[346804683,1735300238789,-1263.24,9.539e-05,2]
[346804684,1735300238799,-500.0,9.539e-05,2]
[346804685,1735300238808,-500.0,9.539e-05,2]
[346804686,1735300238817,-500.0,9.539e-05,2]
[346804687,1735300238827,-500.0,9.539e-05,2]
[346804688,1735300238836,-500.0,9.539e-05,2]
[346804689,1735300238846,-1210.77,9.54e-05,2]
[346804690,1735300238855,-515.57,9.54e-05,2]
[346804691,1735300238864,-1310.58,9.54e-05,2]
[346804692,1735300238873,-500.0,9.721e-05,2]
[346804693,1735300238882,-1289.91,9.721e-05,2]
[346804694,1735300238892,-503.4221347,9.722e-05,2]
[346804695,1735300238902,-522.42643576,9.722e-05,2]
[346804696,1735300238911,-500.0,9.722e-05,2]
[346804697,1735300238921,-495.31853385,9.722e-05,2]
[346804698,1735300238930,-500.58308084,9.722e-05,2]
[346804699,1735300238939,-500.0,9.722e-05,2]
[346804700,1735300238949,-500.0,9.722e-05,2]
[346804701,1735300238959,-500.0,9.722e-05,2]
[346804702,1735300238968,-500.0,9.722e-05,2]
[346804703,1735300238978,-500.0,9.722e-05,2]
[346804704,1735300238988,-500.0,9.722e-05,2]
[346804705,1735300238998,-500.0,9.722e-05,2]
[346804706,1735300239007,-500.0,9.723e-05,2]
[346804707,1735300239016,-221.38017867,9.723e-05,2]
[346804708,1735300239028,-260.5,9.81e-05,2]
[346804709,1735300239038,-500.0,9.81e-05,2]
[346804710,1735300239047,-395.39191301,9.81e-05,2]
[346804711,1735300239056,-4930.9,9.81e-05,2]
[346804712,1735300239066,-194.14660989,9.81e-05,2]
[346804713,1735300239076,-233.476464,9.81e-05,2]
[346804714,1735300239086,-606.57769026,9.811e-05,2]
[346804715,1735300239096,-616.73,9.811e-05,2]
[346804716,1735300239105,-500.0,9.811e-05,2]